Cogmind - Beta 10.1 @@@ ROGUE MODE // 2020.09.25 @ 13:41:56 Player: cptwinky Result: Destroyed by as-62752 with Assembled Maul Performance ------------- Evolutions (0) 0 Regions Visited (2) 400 Robots Destroyed (22) 110 Value Destroyed (443) 443 Prototype IDs (4) 80 Alien Tech Used (0) 0 Bonus (0) 0 TOTAL SCORE: 1033 Bonus ------- None Cogmind --------- Core Integrity 0/250 Matter 276/300 Energy 125/125 System Corruption 0% Temperature Cool (0) Movement Treading (180) Ox1 Location -10/Mines Parts ------- > --- POWER (1) -------- Light Ion Engine > --- PROPULSION (2) --- Light Treads Light Treads > --- UTILITY (2) ------ Large Storage Unit High-capacity Storage Unit > --- WEAPON (2) ------- Light Assault Rifle Light Assault Rifle > --- INVENTORY (18) --- Light Treads Light Treads Light Treads Light Treads Wheel Compact Wheel Large Storage Unit High-capacity Matter Pod (153) Structural Scanner Hacking Suite Beam Cannon Assault Rifle Light Assault Rifle Light Assault Rifle Datajack Mining Laser Peak State ------------ > --- POWER ------------ Light Ion Engine > --- PROPULSION ------- Light Treads Light Treads > --- UTILITY ---------- Large Storage Unit Large Storage Unit > --- WEAPON ----------- Medium Laser Small Laser > --- INVENTORY -------- Light Ion Engine Light Treads Light Treads Light Treads Light Treads Wheel Compact Wheel Small Storage Unit Small Laser Assault Rifle [Rating: 8] Favorites ----------- Power Light Ion Engine Engine Light Ion Engine Propulsion Light Treads Treads Light Treads Utility Large Storage Unit Storage Large Storage Unit Weapon Small Laser Energy Gun Small Laser Ballistic Gun Light Assault Rifle Build | -11 -10 -10 ------- Run | Scr Mat Min Slots Evolved . | . . . Power . | . . . Propulsion . | . . . Utility . | . . . Weapon . | . . . Parts Attached 21 | 7 11 3 Power 3 | 1 2 . Engine 3 | 1 2 . Core . | . . . Reactor . | . . . Propulsion 5 | 2 2 1 Treads 5 | 2 2 1 Leg . | . . . Wheel . | . . . Hover . | . . . Flight . | . . . Utility 5 | 2 2 1 Device . | . . . Storage 5 | 2 2 1 Processor . | . . . Hackware . | . . . Protection . | . . . Artifact . | . . . Weapon 8 | 2 5 1 Energy Gun 6 | 2 4 . Energy Cannon . | . . . Ballistic Gun 2 | . 1 1 Ballistic Cannon . | . . . Launcher . | . . . Special Weapon . | . . . Impact Weapon . | . . . Slashing Weapon . | . . . Piercing Weapon . | . . . Special Melee Weapon . | . . . Unidentified Prototypes . | . . . Parts Lost 10 | . 9 1 Power 2 | . 2 . Propulsion 2 | . 2 . Utility . | . . . Weapon 6 | . 5 1 Highest Loss Streak 4 | . 4 1 Average Slot Usage (%) 99 | . 99 100 Engine 13 | . 13 14 Treads 28 | . 28 28 Storage 28 | . 28 28 Energy Gun 21 | . 24 13 Ballistic Gun 6 | . 3 14 Naked Turns . | . . . Heaviest Build 53 | 14 38 53 Greatest Support 40 | 40 40 40 Greatest Overweight (x) 1 | . 1 1 Average Overweight (x) . | . . . Largest Inventory Capacity 18 | 8 16 18 Average Capacity 13 | 6 13 17 Most Carried 17 | 4 16 17 Average Carried 12 | 2 11 16 Final Capacity 18 | 8 16 18 Final Carried 16 | 4 16 16 Class Distribution -------------------- 100% | Mutant Dominant Class ---------------- Mutant | -10/Materials Mutant | -10/Mines Resources | -11 -10 -10 ----------- Run | Scr Mat Min Matter Collected 533 | 270 214 49 Remotely . | . . . Salvage Created 753 | 96 632 25 Parts 47 | 2 45 . Haulers Intercepted 1 | . 1 . Recyclers Shooed 1 | . 1 . Parts Field Recycled . | . . . Retrieved Matter . | . . . Parts Self-Destructed . | . . . Prevented . | . . . Kills | -11 -10 -10 ------- Run | Scr Mat Min Combat Hostiles Destroyed 18 | . 16 2 Guns 18 | . 16 2 Classes Destroyed 6 | 1 4 1 Hauler 1 | . 1 . Recycler 2 | 1 1 . Operator 1 | . 1 . Swarmer 6 | . 6 . Grunt 10 | . 10 . Assembled 2 | . . 2 Best Kill Streak 3 | 1 3 1 Combat Bots Only 3 | . 3 1 Max Kills in Single Turn 2 | 1 2 1 Gunslinging 1 | . 1 . Exploded . | . . . Melee . | . . . Uniques/NPCs Destroyed . | . . . Combat | -11 -10 -10 -------- Run | Scr Mat Min Damage Taken 1122 | . 889 233 Core 272 | . 171 101 Absorbed by Shields . | . . . Core Remaining (%) 100 | 100 . . Volleys Fired 81 | 3 62 16 Largest 2 | 2 2 2 Hottest 90 | 90 90 60 Shots Fired 159 | 6 122 31 Gun 159 | 6 122 31 Cannon . | . . . Launcher . | . . . Special . | . . . Kinetic 32 | . 10 22 Thermal 127 | 6 112 9 Explosive . | . . . Electromagnetic . | . . . Robot Hit Streak 13 | 4 13 6 Robot Miss Streak 3 | 1 3 2 Penetration Max . | . . . Secondary Targets 4 | . 3 1 Max Gunslinging Chain 1 | . 1 1 Shots Hit Robots 112 | 4 90 18 Core Hits 43 | 2 34 7 Critical Hits . | . . . Critical Kills . | . . . Critical Parts Destroyed . | . . . Melee Attacks . | . . . Impact . | . . . Slashing . | . . . Piercing . | . . . Sneak Attacks . | . . . Combat Hostiles . | . . . Follow-up Attacks . | . . . Damage Inflicted 1195 | 45 1024 126 Guns 1193 | 45 1024 124 Cannons . | . . . Explosions . | . . . Melee . | . . . Ramming 2 | . . 2 Kinetic 142 | . 63 79 Thermal 1051 | 45 961 45 Explosive . | . . . Electromagnetic . | . . . Impact . | . . . Slashing . | . . . Piercing . | . . . Highest Corruption . | . . . Average Corruption . | . . . Corruption Purged . | . . . Overload Shots . | . . . Overflow Damage . | . . . Projectiles . | . . . Explosions . | . . . Melee . | . . . Knockbacks . | . . . Impact . | . . . Kinetic . | . . . Secondary . | . . . Self-Inflicted Damage . | . . . Shots . | . . . Rammed 1 | . . 1 Targets Rammed 1 | . . 1 Kicked . | . . . Crushed . | . . . Highest Temperature 300 | 90 300 80 Average Temperature 84 | 48 92 48 Received Heat Transfer 434 | . 294 140 Effects 2 | . 2 . Interference 2 | . 2 . Siege Activations . | . . . Robots Corrupted . | . . . Combat Hostiles . | . . . Parts Fried . | . . . Impact Corruptions . | . . . Robots Melted . | . . . Combat Hostiles . | . . . Parts Melted 5 | . 5 . Heat Transferred 2622 | 124 2398 100 Parts Sabotaged . | . . . Parts Stolen . | . . . Parts Stripped . | . . . Power Chain Reactions . | . . . Missiles Intercepted . | . . . Alert | -11 -10 -10 ------- Run | Scr Mat Min Peak Influence 180 | 5 180 40 Initial 40 | . 3 40 Average 61 | 2 76 39 Maximum Alert Level . | . . . Low Security (%) 100 | 100 100 100 Level 1 . | . . . Level 2 . | . . . Level 3 . | . . . Level 4 . | . . . Level 5 . | . . . High Security . | . . . Max Security . | . . . Squads Dispatched 5 | . 5 . Investigation 4 | . 4 . Extermination . | . . . Reinforcement 1 | . 1 . Assault . | . . . Garrison . | . . . Intercept . | . . . Construction Impeded . | . . . Haulers Reinforced . | . . . Stealth | -11 -10 -10 --------- Run | Scr Mat Min Distress Signals . | . . . Communications Jammed . | . . . Distress Signals . | . . . Times Spotted 31 | . 22 9 Peak Tracking Total 9 | . 4 9 Tactical Retreats 1 | . . 1 Traps | -11 -10 -10 ------- Run | Scr Mat Min Traps Triggered 1 | . 1 . Indirectly . | . . . Trap Hack Attempts . | . . . Triggered . | . . . Disarmed . | . . . Reprogrammed . | . . . Reused . | . . . Traps Extracted . | . . . Installed . | . . . Triggered . | . . . Machines | -11 -10 -10 ---------- Run | Scr Mat Min Machines Disabled . | . . . Max in Single Turn . | . . . Machines Sabotaged . | . . . Garrisons Compromised . | . . . Overloaded Fab Kills . | . . . Fab Network Shutdowns . | . . . Hacking | -11 -10 -10 --------- Run | Scr Mat Min Machines Accessed 6 | . 6 . Terminals 4 | . 4 . Fabricators . | . . . Repair Stations . | . . . Recycling Units 2 | . 2 . Scanalyzers . | . . . Garrison Access . | . . . Total Hacks 15 | . 15 . Successful 9 | . 9 . Failed 5 | . 5 . Catastrophic 2 | . 2 . Database Lockouts 1 | . 1 . Manual 7 | . 7 . Terminals 10 | . 10 . Fabricators . | . . . Repair Stations . | . . . Recycling Units 5 | . 5 . Scanalyzers . | . . . Garrison Access . | . . . Terminal Hacks 5 | . 5 . Part Schematic 1 | . 1 . Robot Analysis 1 | . 1 . Prototype ID Bank 2 | . 2 . Hauler Manifests 1 | . 1 . Fabricator Hacks . | . . . Repair Station Hacks . | . . . Recycling Unit Hacks 2 | . 2 . Retrieve Components 2 | . 2 . Scanalyzer . | . . . Garrison Access Hacks . | . . . Unauthorized Hacks 2 | . 2 . Terminals . | . . . Fabricators . | . . . Repair Stations . | . . . Recycling Units 2 | . 2 . Tunnel 2 | . 2 . Scanalyzers . | . . . Garrison Access . | . . . Data Cores Recovered . | . . . Used . | . . . Hacking Detections 5 | . 5 . Full Trace Events 1 | . 1 . Feedback Events . | . . . Feedback Blocked . | . . . Robot Schematics Acquired . | . . . Robots Built . | . . . Matter . | . . . Time . | . . . Total Robot Build Rating . | . . . Part Schematics Acquired 1 | . 1 . Parts Built . | . . . Matter . | . . . Time . | . . . Total Part Build Rating . | . . . Parts Repaired . | . . . Time . | . . . Parts Recycled . | . . . Recycled Matter . | . . . Retrieved Matter . | . . . Retrieved Components 16 | . 16 . Parts Scanalyzed . | . . . Part Schematics Acquired . | . . . Parts Damaged . | . . . Bothacking | -11 -10 -10 ------------ Run | Scr Mat Min Used RIF Installer . | . . . Robots Hacked . | . . . Non-combat . | . . . Combat . | . . . Robot Hacks Applied . | . . . Relay Couplers Released . | . . . Robots Rewired . | . . . Allies Hacked . | . . . Hacks Repelled . | . . . Allies | -11 -10 -10 -------- Run | Scr Mat Min Total Allies . | . . . Largest Group . | . . . Highest-Rated Group . | . . . Highest-Rated Ally . | . . . Total Orders . | . . . Ally Attacks . | . . . Total Damage . | . . . Kills . | . . . Allies Corrupted . | . . . Allies Melted . | . . . Intel | -11 -10 -10 ------- Run | Scr Mat Min Robot Analysis Total 1 | . 1 . Derelict Logs Recovered 1 | . . 1 Drone Launches . | . . . Drone Recoveries . | . . . Exploration | -11 -10 -10 ------------- Run | Scr Mat Min Turns Passed 1376 | 119 962 295 Spaces Moved 635 | 54 436 145 Core 5 | 5 . . Treads 630 | 49 436 145 Legs . | . . . Wheels . | . . . Hover . | . . . Flight . | . . . Fastest Speed 50 | 50 160 160 Average Speed 161 | 149 160 170 Slowest Speed 180 | 160 180 180 Overloaded Moves . | . . . Propulsion Burnouts . | . . . Robots Hopped . | . . . Cave-ins Triggered . | . . . Exploration Rate (%) 39 | 6 75 38 Regions Visited 2 Branch Regions 1 Pre-discovered Areas 3 | . 2 1 Known Exits Taken . | . . . Unknown Exits Taken 2 | 1 1 . Scrap Searched 1 | . . 1 Spaces Dug . | . . . Terrain Destroyed . | . . . Melee . | . . . Projectile . | . . . AOE . | . . . Terrain Rammed . | . . . Walls Destroyed . | . . . Machines Disabled . | . . . Actions | -11 -10 -10 --------- Run | Scr Mat Min Total 830 | 83 580 167 Wait 69 | 16 52 1 Move 633 | 53 435 145 Hop . | . . . Pick Up 23 | 4 19 . Fast Attach 8 | 7 1 . Attach 9 | . 8 1 Detach . | . . . Swap 4 | . 2 2 Drop 2 | . 1 1 Fire 81 | 3 62 16 Melee . | . . . Ram . | . . . Kick . | . . . Crush 1 | . . 1 Escape Stasis . | . . . Rewire . | . . . Trap . | . . . Miscellaneous . | . . . Route ------- -11/Scrapyard -10/Materials (discovered 2 exits: [*Mat] / [*Min]) -10/Mines (discovered 1 exit: [*Mat]) History --------- Turn | Location | Event 3 | -11/Scrapyard | Discovered new exit (range 15) 120 | -11/Scrapyard | Entered Materials 311 | -10/Materials | Build established: Mutant 351 | -10/Materials | Central database locked down 525 | -10/Materials | Discovered new exit (range 3) 837 | -10/Materials | Core integrity fell below 50% 873 | -10/Materials | Lost 4 parts (1p1n2w) 1027 | -10/Materials | Discovered new exit (range 16) 1082 | -10/Materials | Entered Mines 1161 | -10/Mines | Discovered new exit (range 15) 1194 | -10/Mines | Assembled infested the area 1199 | -10/Mines | Assisted by a Guerilla fighting off Assembled 1298 | -10/Mines | Learned location of Zion (-7) 1346 | -10/Mines | Core integrity fell below 20% 1377 | -10/Mines | Destroyed by as-62752 with Assembled Maul Last Messages --------------- 01327_ YI-UF0 destroyed. 01333_ The unstable cave ceiling collapses. 01343_ as-46213 destroyed. 01343_ Switching to secondary target: as-07203. 01348_ as-35239 destroyed. 01350_ The unstable cave ceiling collapses. 01351_ Sml. Laser destroyed. 01352_ The unstable cave ceiling collapses. 01357_ U-05 Engineer lays Concrete. 01359_ U-05 Engineer builds a Wall. 01363_ The unstable cave ceiling collapses. 01363_ U-05 Engineer lays Concrete. 01365_ as-07203 destroyed. 01365_ U-05 Engineer lays Concrete. 01367_ U-05 Engineer builds a Wall. 01368_ Acquired 8 matter. 01372_ U-05 Engineer lays Concrete. 01373_ Acquired 12 matter. 01375_ U-05 Engineer destroyed. 01377_ Slammed into as-62752. Map ----- +----------------------------------------------------+ | ?????????????????????????????????????????????????? | | ?????????????????????????????????????????????????? | | ?????????????????????????????????????????????????? | | ?????????????????????????????????????????????????? | | ?????????????????????????????????????????????????? | | ?????????????????????????????????????????????????? | | ?????????????????????????????????????????????????? | | ?????????????????????????????????????????????????? | | ?????????????????????????????????????????????????? | | ?????????????????????????????????????????????????? | | ??????????????????????????# ?????????????????????? | | ?????????????????????????? ? ?????????????????? | | ?????????????????????????? ???????????????? | | ?????????????????????????? ????????????????? | | ?????????????????????????? ?? ??????????????? | | ?????????????????????????? ## ???????????????? | | ????????####?????????????# ????????????????? | | ???????## ###????????### ## ###???????????????? | | ??????## ##???????? #???????????????? | | ??????# #???????? # = ?????????????????? | | ??????# #???####? ??????????????????? | | ??????# #??## ## # ???????????????????? | | ?????## ##### # ##????????????????????? | | ???### # % !####?????????????????? | | ??## !! # %a #?????????????????? | | ??# ! ! # @aa #?????????????????? | | ??# ! ! ## #### #?????????????????? | | ??# !!! ## ##### ########??????????? | | ?# ###???# ###????????? | | ?# ## #?????# ##???????? | | ?## #?### #### ### #??????####### #???????? | | ??###????# #?## #?####????????????## #???????? | | ?????????# ### ##?????????????????# ##???????? | | ?????????# ## #?????????????????## ##????????? | | ?????????# ##?????????????????# #####?????? | | ?????????#### #?????????????????# #?????? | | ????????????# #?????????????????# ### #?????? | | ????????????# ##????????????###### ### #?????? | | ????????????# ##???????????### ## #?????? | | ????????????## ##?????????# #### ####### | | ?????????????## #????????# ##??# ## | | ??????????????# #????????# #####????##### ## | | ?????????????## ###++#### #?????????????# ## | | ????????????## #??????????????# ## | | ????????????# #?????????###### ## | | ???????????## #?????????# | | ???????????# ### ##?????????# """ | | ???????????# ##???????????????# """ | | ???????????# #### ################## """ | | ???????????## ##??# < | +----------------------------------------------------+ Best States ------------- Heat Dissipation 25 Energy Generation 10 Energy Capacity 125 Matter Stores 300 Matter Capacity 300 Sight Range 16 Terrain Scan Density 10 Evasion (%) 40 Recoil Reduction 2 Item Schematics ----------------- Hcp. Storage Unit | -10/Materials | Hacked Robot Schematics ------------------ None Fabricated ------------ Nothing Alien Tech Used ----------------- None Achievements -------------- None Challenges ------------ None Game ------ Seed ImpactCloakMeganuke Manual? 0 Play Time 00:09:27 Cumulative 651.1 hours Start 2020.09.25 @ 13:34:21 End 2020.09.25 @ 13:41:56 Sessions 1 Manual Loads 0 Difficulty Rogue Special Mode None Game No. 469 Rogue 465 Adventurer 4 Explorer 0 Win Type - Total 70 Types 56/6/3/2/2/0/0/1/0 Lore% 93 Gallery% 96 Achievement% 96 Wizard Run 0 Options --------- ASCII 0 Keyboard 0 Movement Vi Keybinds 0 Fullscreen 0 Font 16/Terminus Map View 76x50 Tactical HUD 1 Map Filters NONE Filters NONE Steam 1 RUN: dc6a785c-1b26-4b10-b48c-1d315d51601d